{"text_format":"3","workbook":"xlsx","n_sheets":4,"sheets":["START","PROJEKTPARAMETRAR","PROJEKTINFORMATION","PROJEKTSUMMOR"],"not_rendered":{"charts":2,"defined_names":3,"pivot_tables":1},"read":"whole","date_system":"1900"}

{"sheet":"START","index":0,"n_rows":7,"n_cols":2,"rows_kept":7}
[null,"OM DEN HÄR MALLEN"]
[null,"Spåra projektparametrar, projektinformation och projektsummor i den här arbetsboken för uppföljning och planering av evenemang."]
[null,"Ange information i kalkylbladet Projektparametrar för att uppdatera stapeldiagram och i kalkylbladet Projektinformation. Pivottabellen i kalkylbladet Projektsummor uppdateras automatiskt."]
[null,"Fyll i företagets namn i kalkylbladet Parametrar, så uppdateras det automatiskt i de andra kalkylbladen."]
[null,"Obs!  "]
[null,"Ytterligare anvisningar finns i kolumn A i varje kalkylblad i arbetsboken UPPFÖLJNING OCH PLANERING AV EVENEMANG. Den här texten har avsiktligt dolts. Om du vill ta bort texten markerar du kolumn A och väljer sedan TA BORT. Om du vill visa texten markerar du kolumn A och ändrar sedan teckenfärg."]
[null,"Om du vill läsa mer om tabeller i kalkylbladen trycker du på SKIFT och sedan på F10 i en tabell, väljer alternativet TABELL och väljer sedan ALTERNATIVTEXT."]

{"sheet":"PROJEKTPARAMETRAR","index":1,"n_rows":19,"n_cols":9,"rows_kept":19,"merged":[[23,1,42,3]]}
[null,"Företagsnamn"]
[null,"Projektuppföljning för evenemangshantering"]
[null,{"$f":"B1&\" Konfidentiellt\"","v":"Företagsnamn Konfidentiellt"}]
[null,"Skuggade celler beräknas automatiskt. Du behöver inte skriva in något i dem."]
[null,"PROJEKTTYP","KUNDANSVARIG","PROJEKTLEDARE","STRATEGIANSVARIG","DESIGNEXPERT","EVENEMANGSPERSONAL","ADMINISTRATIONSPERSONAL","Summa"]
[null,"Utveckling av evenemangsstrategi",{"v":0.2,"d":"20%"},{"v":0.1,"d":"10%"},{"v":0.6,"d":"60%"},{"v":0,"d":"0%"},{"v":0,"d":"0%"},{"v":0.1,"d":"10%"},{"$f":"SUM(Parametrar[[#This Row],[KUNDANSVARIG]:[ADMINISTRATIONSPERSONAL]])","v":{"v":1,"d":"100%"}}]
[null,"Evenemangsplanering",{"v":0.2,"d":"20%"},{"v":0.5,"d":"50%"},{"v":0.1,"d":"10%"},{"v":0.1,"d":"10%"},{"v":0,"d":"0%"},{"v":0.1,"d":"10%"},{"$f":"SUM(Parametrar[[#This Row],[KUNDANSVARIG]:[ADMINISTRATIONSPERSONAL]])","v":{"v":0.9999999999999999,"d":"100%"}}]
[null,"Evenemangsdesign",{"v":0.2,"d":"20%"},{"v":0.2,"d":"20%"},{"v":0,"d":"0%"},{"v":0.5,"d":"50%"},{"v":0,"d":"0%"},{"v":0.1,"d":"10%"},{"$f":"SUM(Parametrar[[#This Row],[KUNDANSVARIG]:[ADMINISTRATIONSPERSONAL]])","v":{"v":1,"d":"100%"}}]
[null,"Evenemangslogistik",{"v":0.2,"d":"20%"},{"v":0.6,"d":"60%"},{"v":0,"d":"0%"},{"v":0,"d":"0%"},{"v":0.1,"d":"10%"},{"v":0.1,"d":"10%"},{"$f":"SUM(Parametrar[[#This Row],[KUNDANSVARIG]:[ADMINISTRATIONSPERSONAL]])","v":{"v":1,"d":"100%"}}]
[null,"Evenemangsbemanning",{"v":0.2,"d":"20%"},{"v":0.1,"d":"10%"},{"v":0,"d":"0%"},{"v":0,"d":"0%"},{"v":0.6,"d":"60%"},{"v":0.1,"d":"10%"},{"$f":"SUM(Parametrar[[#This Row],[KUNDANSVARIG]:[ADMINISTRATIONSPERSONAL]])","v":{"v":1,"d":"100%"}}]
[null,"Evenemangsutvärdering",{"v":0.2,"d":"20%"},{"v":0.2,"d":"20%"},{"v":0.2,"d":"20%"},{"v":0.2,"d":"20%"},{"v":0,"d":"0%"},{"v":0.2,"d":"20%"},{"$f":"SUM(Parametrar[[#This Row],[KUNDANSVARIG]:[ADMINISTRATIONSPERSONAL]])","v":{"v":1,"d":"100%"}}]
[null,"Genomsnittliga priser",{"v":180,"d":"180 kr"},{"v":120,"d":"120 kr"},{"v":150,"d":"150 kr"},{"v":100,"d":"100 kr"},{"v":80,"d":"80 kr"},{"v":60,"d":"60 kr"}]
[]
[{"$nulls":5},"Stapeldiagram som visar planerat antal timmar jämfört med faktiskt antal timmar finns i den här cellen."]
[null,null,"KUNDANSVARIG","PROJEKTLEDARE","STRATEGIANSVARIG","DESIGNEXPERT","EVENEMANGSPERSONAL","ADMINISTRATIONSPERSONAL"]
[null,"PLANERAD KOSTNAD",{"$f":"SUBTOTAL(109,Projektinformation[KUNDANSVARIG])","v":{"v":54000,"d":"54,000.00 kr"}},{"$f":"SUBTOTAL(109,Projektinformation[PROJEKTLEDARE])","v":{"v":52200,"d":"52,200.00 kr"}},{"$f":"SUBTOTAL(109,Projektinformation[STRATEGIANSVARIG])","v":{"v":24000,"d":"24,000.00 kr"}},{"$f":"SUBTOTAL(109,Projektinformation[DESIGNEXPERT])","v":{"v":29000,"d":"29,000.00 kr"}},{"$f":"SUBTOTAL(109,Projektinformation[EVENEMANGSPERSONAL])","v":{"v":13200,"d":"13,200.00 kr"}},{"$f":"SUBTOTAL(109,Projektinformation[ADMINISTRATIONSPERSONAL])","v":{"v":9000,"d":"9,000.00 kr"}}]
[null,"FAKTISK KOSTNAD",{"$f":"SUBTOTAL(109,Projektinformation[[KUNDANSVARIG ]])","v":{"v":54360,"d":"54,360.00 kr"}},{"$f":"SUBTOTAL(109,Projektinformation[[PROJEKTLEDARE ]])","v":{"v":51540,"d":"51,540.00 kr"}},{"$f":"SUBTOTAL(109,Projektinformation[[STRATEGIANSVARIG ]])","v":{"v":25650,"d":"25,650.00 kr"}},{"$f":"SUBTOTAL(109,Projektinformation[[DESIGNEXPERT ]])","v":{"v":28900,"d":"28,900.00 kr"}},{"$f":"SUBTOTAL(109,Projektinformation[[EVENEMANGSPERSONAL ]])","v":{"v":13400,"d":"13,400.00 kr"}},{"$f":"SUBTOTAL(109,Projektinformation[[ADMINISTRATIONSPERSONAL ]])","v":{"v":9060,"d":"9,060.00 kr"}}]
[null,"PLANERAT ANTAL TIMMAR",{"$f":"C16/$C$12","v":{"v":300,"d":"300.00"}},{"$f":"D16/$C$12","v":{"v":290,"d":"290.00"}},{"v":133.33333333333334,"d":"133.33"},{"v":161.11111111111111,"d":"161.11"},{"v":73.33333333333333,"d":"73.33"},{"v":50,"d":"50.00"}]
[null,"FAKTISKT ANTAL TIMMAR",{"$f":"C17/$C$12","v":{"v":302,"d":"302.00"}},{"$f":"D17/$C$12","v":{"v":286.3333333333333,"d":"286.33"}},{"$f":"E17/$C$12","v":{"v":142.5,"d":"142.50"}},{"$f":"F17/$C$12","v":{"v":160.55555555555554,"d":"160.56"}},{"$f":"G17/$C$12","v":{"v":74.44444444444444,"d":"74.44"}},{"$f":"H17/$C$12","v":{"v":50.333333333333336,"d":"50.33"}}]

{"sheet":"PROJEKTINFORMATION","index":2,"n_rows":10,"n_cols":23,"rows_kept":10}
[null,{"$f":"PROJEKTPARAMETRAR!B1","v":"Företagsnamn"}]
[null,"Projektuppföljning för evenemangshantering"]
[null,{"$f":"PROJEKTPARAMETRAR!B3","v":"Företagsnamn Konfidentiellt"}]
["Ange information i tabellen Projektinformation som börjar i cellen till höger.\nINFORMATION\nOm du vill lägga till en rad i tabellen till höger markerar du cellen längst ned till höger i brödtexten i tabellen (inte i summaraden) och trycker på TABB. Du kan också trycka på SKIFT + F10-tangenten där du vill infoga raden och välja Infoga | Tabellrader ovanför/nedanför.\nSe till att ta bort alla oanvända rader eftersom pivottabellen Projektsummor använder alla celler i tabellen och annars ger felaktiga resultat.","PROJEKTNAMN","PROJEKTTYP","BERÄKNAD START","BERÄKNAT SLUT","FAKTISK START","FAKTISKT SLUT","BERÄKNAT ARBETE","FAKTISKT ARBETE","BERÄKNAD VARAKTIGHET","FAKTISK VARAKTIGHET","KUNDANSVARIG","PROJEKTLEDARE","STRATEGIANSVARIG","DESIGNEXPERT","EVENEMANGSPERSONAL","ADMINISTRATIONSPERSONAL","KUNDANSVARIG ","PROJEKTLEDARE ","STRATEGIANSVARIG ","DESIGNEXPERT ","EVENEMANGSPERSONAL ","ADMINISTRATIONSPERSONAL "]
[null,"Projekt 1","Utveckling av evenemangsstrategi",{"$f":"DATE(YEAR(TODAY()),6,9)","v":"2022-06-09"},{"$f":" DATE(YEAR(TODAY()),8,7)","v":"2022-08-07"},{"$f":"DATE(YEAR(TODAY()),6,29)","v":"2022-06-29"},{"$f":"DATE(YEAR(TODAY()),9,3)","v":"2022-09-03"},200,220,{"$f":"DAYS360(Projektinformation[[#This Row],[BERÄKNAD START]],Projektinformation[[#This Row],[BERÄKNAT SLUT]],FALSE)","v":58},{"$f":"DAYS360(Projektinformation[[#This Row],[FAKTISK START]],Projektinformation[[#This Row],[FAKTISKT SLUT]],FALSE)","v":64},{"$f":"INDEX(Parametrar[],MATCH(Projektinformation[[#This Row],[PROJEKTTYP]],Parametrar[PROJEKTTYP],0),MATCH(Projektinformation[[#Headers],[KUNDANSVARIG]],Parametrar[#Headers],0))*INDEX(PROJEKTPARAMETRAR!$B$12:$H$12,1,MATCH(Projektinformation[[#Headers],[KUNDANSVARIG]],Parametrar[#Headers],0))*Projektinformation[[#This Row],[BERÄKNAT ARBETE]]","v":{"v":7200,"d":"7,200 kr"}},{"$f":"INDEX(Parametrar[],MATCH(Projektinformation[[#This Row],[PROJEKTTYP]],Parametrar[PROJEKTTYP],0),MATCH(Projektinformation[[#Headers],[PROJEKTLEDARE]],Parametrar[#Headers],0))*INDEX(PROJEKTPARAMETRAR!$B$12:$H$12,1,MATCH(Projektinformation[[#Headers],[PROJEKTLEDARE]],Parametrar[#Headers],0))*Projektinformation[[#This Row],[BERÄKNAT ARBETE]]","v":{"v":2400,"d":"2,400 kr"}},{"$f":"INDEX(Parametrar[],MATCH(Projektinformation[[#This Row],[PROJEKTTYP]],Parametrar[PROJEKTTYP],0),MATCH(Projektinformation[[#Headers],[STRATEGIANSVARIG]],Parametrar[#Headers],0))*INDEX(PROJEKTPARAMETRAR!$B$12:$H$12,1,MATCH(Projektinformation[[#Headers],[STRATEGIANSVARIG]],Parametrar[#Headers],0))*Projektinformation[[#This Row],[BERÄKNAT ARBETE]]","v":{"v":18000,"d":"18,000 kr"}},{"$f":"INDEX(Parametrar[],MATCH(Projektinformation[[#This Row],[PROJEKTTYP]],Parametrar[PROJEKTTYP],0),MATCH(Projektinformation[[#Headers],[DESIGNEXPERT]],Parametrar[#Headers],0))*INDEX(PROJEKTPARAMETRAR!$B$12:$H$12,1,MATCH(Projektinformation[[#Headers],[DESIGNEXPERT]],Parametrar[#Headers],0))*Projektinformation[[#This Row],[BERÄKNAT ARBETE]]","v":{"v":0,"d":"0 kr"}},{"$f":"INDEX(Parametrar[],MATCH(Projektinformation[[#This Row],[PROJEKTTYP]],Parametrar[PROJEKTTYP],0),MATCH(Projektinformation[[#Headers],[EVENEMANGSPERSONAL]],Parametrar[#Headers],0))*INDEX(PROJEKTPARAMETRAR!$B$12:$H$12,1,MATCH(Projektinformation[[#Headers],[EVENEMANGSPERSONAL]],Parametrar[#Headers],0))*Projektinformation[[#This Row],[BERÄKNAT ARBETE]]","v":{"v":0,"d":"0 kr"}},{"$f":"INDEX(Parametrar[],MATCH(Projektinformation[[#This Row],[PROJEKTTYP]],Parametrar[PROJEKTTYP],0),MATCH(Projektinformation[[#Headers],[ADMINISTRATIONSPERSONAL]],Parametrar[#Headers],0))*INDEX(PROJEKTPARAMETRAR!$B$12:$H$12,1,MATCH(Projektinformation[[#Headers],[ADMINISTRATIONSPERSONAL]],Parametrar[#Headers],0))*Projektinformation[[#This Row],[BERÄKNAT ARBETE]]","v":{"v":1200,"d":"1,200 kr"}},{"$f":"INDEX(Parametrar[],MATCH(Projektinformation[[#This Row],[PROJEKTTYP]],Parametrar[PROJEKTTYP],0),MATCH(Projektinformation[[#Headers],[KUNDANSVARIG]],Parametrar[#Headers],0))*INDEX(PROJEKTPARAMETRAR!$B$12:$H$12,1,MATCH(Projektinformation[[#Headers],[KUNDANSVARIG]],Parametrar[#Headers],0))*Projektinformation[[#This Row],[FAKTISKT ARBETE]]","v":{"v":7920,"d":"7,920 kr"}},{"$f":"INDEX(Parametrar[],MATCH(Projektinformation[[#This Row],[PROJEKTTYP]],Parametrar[PROJEKTTYP],0),MATCH(Projektinformation[[#Headers],[PROJEKTLEDARE]],Parametrar[#Headers],0))*INDEX(PROJEKTPARAMETRAR!$B$12:$H$12,1,MATCH(Projektinformation[[#Headers],[PROJEKTLEDARE]],Parametrar[#Headers],0))*Projektinformation[[#This Row],[FAKTISKT ARBETE]]","v":{"v":2640,"d":"2,640 kr"}},{"$f":"INDEX(Parametrar[],MATCH(Projektinformation[[#This Row],[PROJEKTTYP]],Parametrar[PROJEKTTYP],0),MATCH(Projektinformation[[#Headers],[STRATEGIANSVARIG]],Parametrar[#Headers],0))*INDEX(PROJEKTPARAMETRAR!$B$12:$H$12,1,MATCH(Projektinformation[[#Headers],[STRATEGIANSVARIG]],Parametrar[#Headers],0))*Projektinformation[[#This Row],[FAKTISKT ARBETE]]","v":{"v":19800,"d":"19,800 kr"}},{"$f":"INDEX(Parametrar[],MATCH(Projektinformation[[#This Row],[PROJEKTTYP]],Parametrar[PROJEKTTYP],0),MATCH(Projektinformation[[#Headers],[DESIGNEXPERT]],Parametrar[#Headers],0))*INDEX(PROJEKTPARAMETRAR!$B$12:$H$12,1,MATCH(Projektinformation[[#Headers],[DESIGNEXPERT]],Parametrar[#Headers],0))*Projektinformation[[#This Row],[FAKTISKT ARBETE]]","v":{"v":0,"d":"0 kr"}},{"$f":"INDEX(Parametrar[],MATCH(Projektinformation[[#This Row],[PROJEKTTYP]],Parametrar[PROJEKTTYP],0),MATCH(Projektinformation[[#Headers],[EVENEMANGSPERSONAL]],Parametrar[#Headers],0))*INDEX(PROJEKTPARAMETRAR!$B$12:$H$12,1,MATCH(Projektinformation[[#Headers],[EVENEMANGSPERSONAL]],Parametrar[#Headers],0))*Projektinformation[[#This Row],[FAKTISKT ARBETE]]","v":{"v":0,"d":"0 kr"}},{"$f":"INDEX(Parametrar[],MATCH(Projektinformation[[#This Row],[PROJEKTTYP]],Parametrar[PROJEKTTYP],0),MATCH(Projektinformation[[#Headers],[ADMINISTRATIONSPERSONAL]],Parametrar[#Headers],0))*INDEX(PROJEKTPARAMETRAR!$B$12:$H$12,1,MATCH(Projektinformation[[#Headers],[ADMINISTRATIONSPERSONAL]],Parametrar[#Headers],0))*Projektinformation[[#This Row],[FAKTISKT ARBETE]]","v":{"v":1320,"d":"1,320 kr"}}]
[null,"Projekt 2","Evenemangsplanering",{"$f":"DATE(YEAR(TODAY())+1,6,25)","v":"2023-06-25"},{"$f":"DATE(YEAR(TODAY())+1,7,27)","v":"2023-07-27"},{"$f":"DATE(YEAR(TODAY()),7,15)","v":"2022-07-15"},{"$f":"DATE(YEAR(TODAY())+1,8,25)","v":"2023-08-25"},400,390,{"$f":"DAYS360(Projektinformation[[#This Row],[BERÄKNAD START]],Projektinformation[[#This Row],[BERÄKNAT SLUT]],FALSE)","v":32},{"$f":"DAYS360(Projektinformation[[#This Row],[FAKTISK START]],Projektinformation[[#This Row],[FAKTISKT SLUT]],FALSE)","v":400},{"$f":"INDEX(Parametrar[],MATCH(Projektinformation[[#This Row],[PROJEKTTYP]],Parametrar[PROJEKTTYP],0),MATCH(Projektinformation[[#Headers],[KUNDANSVARIG]],Parametrar[#Headers],0))*INDEX(PROJEKTPARAMETRAR!$B$12:$H$12,1,MATCH(Projektinformation[[#Headers],[KUNDANSVARIG]],Parametrar[#Headers],0))*Projektinformation[[#This Row],[BERÄKNAT ARBETE]]","v":{"v":14400,"d":"14,400 kr"}},{"$f":"INDEX(Parametrar[],MATCH(Projektinformation[[#This Row],[PROJEKTTYP]],Parametrar[PROJEKTTYP],0),MATCH(Projektinformation[[#Headers],[PROJEKTLEDARE]],Parametrar[#Headers],0))*INDEX(PROJEKTPARAMETRAR!$B$12:$H$12,1,MATCH(Projektinformation[[#Headers],[PROJEKTLEDARE]],Parametrar[#Headers],0))*Projektinformation[[#This Row],[BERÄKNAT ARBETE]]","v":{"v":24000,"d":"24,000 kr"}},{"$f":"INDEX(Parametrar[],MATCH(Projektinformation[[#This Row],[PROJEKTTYP]],Parametrar[PROJEKTTYP],0),MATCH(Projektinformation[[#Headers],[STRATEGIANSVARIG]],Parametrar[#Headers],0))*INDEX(PROJEKTPARAMETRAR!$B$12:$H$12,1,MATCH(Projektinformation[[#Headers],[STRATEGIANSVARIG]],Parametrar[#Headers],0))*Projektinformation[[#This Row],[BERÄKNAT ARBETE]]","v":{"v":6000,"d":"6,000 kr"}},{"$f":"INDEX(Parametrar[],MATCH(Projektinformation[[#This Row],[PROJEKTTYP]],Parametrar[PROJEKTTYP],0),MATCH(Projektinformation[[#Headers],[DESIGNEXPERT]],Parametrar[#Headers],0))*INDEX(PROJEKTPARAMETRAR!$B$12:$H$12,1,MATCH(Projektinformation[[#Headers],[DESIGNEXPERT]],Parametrar[#Headers],0))*Projektinformation[[#This Row],[BERÄKNAT ARBETE]]","v":{"v":4000,"d":"4,000 kr"}},{"$f":"INDEX(Parametrar[],MATCH(Projektinformation[[#This Row],[PROJEKTTYP]],Parametrar[PROJEKTTYP],0),MATCH(Projektinformation[[#Headers],[EVENEMANGSPERSONAL]],Parametrar[#Headers],0))*INDEX(PROJEKTPARAMETRAR!$B$12:$H$12,1,MATCH(Projektinformation[[#Headers],[EVENEMANGSPERSONAL]],Parametrar[#Headers],0))*Projektinformation[[#This Row],[BERÄKNAT ARBETE]]","v":{"v":0,"d":"0 kr"}},{"$f":"INDEX(Parametrar[],MATCH(Projektinformation[[#This Row],[PROJEKTTYP]],Parametrar[PROJEKTTYP],0),MATCH(Projektinformation[[#Headers],[ADMINISTRATIONSPERSONAL]],Parametrar[#Headers],0))*INDEX(PROJEKTPARAMETRAR!$B$12:$H$12,1,MATCH(Projektinformation[[#Headers],[ADMINISTRATIONSPERSONAL]],Parametrar[#Headers],0))*Projektinformation[[#This Row],[BERÄKNAT ARBETE]]","v":{"v":2400,"d":"2,400 kr"}},{"$f":"INDEX(Parametrar[],MATCH(Projektinformation[[#This Row],[PROJEKTTYP]],Parametrar[PROJEKTTYP],0),MATCH(Projektinformation[[#Headers],[KUNDANSVARIG]],Parametrar[#Headers],0))*INDEX(PROJEKTPARAMETRAR!$B$12:$H$12,1,MATCH(Projektinformation[[#Headers],[KUNDANSVARIG]],Parametrar[#Headers],0))*Projektinformation[[#This Row],[FAKTISKT ARBETE]]","v":{"v":14040,"d":"14,040 kr"}},{"$f":"INDEX(Parametrar[],MATCH(Projektinformation[[#This Row],[PROJEKTTYP]],Parametrar[PROJEKTTYP],0),MATCH(Projektinformation[[#Headers],[PROJEKTLEDARE]],Parametrar[#Headers],0))*INDEX(PROJEKTPARAMETRAR!$B$12:$H$12,1,MATCH(Projektinformation[[#Headers],[PROJEKTLEDARE]],Parametrar[#Headers],0))*Projektinformation[[#This Row],[FAKTISKT ARBETE]]","v":{"v":23400,"d":"23,400 kr"}},{"$f":"INDEX(Parametrar[],MATCH(Projektinformation[[#This Row],[PROJEKTTYP]],Parametrar[PROJEKTTYP],0),MATCH(Projektinformation[[#Headers],[STRATEGIANSVARIG]],Parametrar[#Headers],0))*INDEX(PROJEKTPARAMETRAR!$B$12:$H$12,1,MATCH(Projektinformation[[#Headers],[STRATEGIANSVARIG]],Parametrar[#Headers],0))*Projektinformation[[#This Row],[FAKTISKT ARBETE]]","v":{"v":5850,"d":"5,850 kr"}},{"$f":"INDEX(Parametrar[],MATCH(Projektinformation[[#This Row],[PROJEKTTYP]],Parametrar[PROJEKTTYP],0),MATCH(Projektinformation[[#Headers],[DESIGNEXPERT]],Parametrar[#Headers],0))*INDEX(PROJEKTPARAMETRAR!$B$12:$H$12,1,MATCH(Projektinformation[[#Headers],[DESIGNEXPERT]],Parametrar[#Headers],0))*Projektinformation[[#This Row],[FAKTISKT ARBETE]]","v":{"v":3900,"d":"3,900 kr"}},{"$f":"INDEX(Parametrar[],MATCH(Projektinformation[[#This Row],[PROJEKTTYP]],Parametrar[PROJEKTTYP],0),MATCH(Projektinformation[[#Headers],[EVENEMANGSPERSONAL]],Parametrar[#Headers],0))*INDEX(PROJEKTPARAMETRAR!$B$12:$H$12,1,MATCH(Projektinformation[[#Headers],[EVENEMANGSPERSONAL]],Parametrar[#Headers],0))*Projektinformation[[#This Row],[FAKTISKT ARBETE]]","v":{"v":0,"d":"0 kr"}},{"$f":"INDEX(Parametrar[],MATCH(Projektinformation[[#This Row],[PROJEKTTYP]],Parametrar[PROJEKTTYP],0),MATCH(Projektinformation[[#Headers],[ADMINISTRATIONSPERSONAL]],Parametrar[#Headers],0))*INDEX(PROJEKTPARAMETRAR!$B$12:$H$12,1,MATCH(Projektinformation[[#Headers],[ADMINISTRATIONSPERSONAL]],Parametrar[#Headers],0))*Projektinformation[[#This Row],[FAKTISKT ARBETE]]","v":{"v":2340,"d":"2,340 kr"}}]
[null,"Projekt 3","Evenemangsdesign",{"$f":"DATE(YEAR(TODAY())+2,7,12)","v":"2024-07-12"},{"$f":"DATE(YEAR(TODAY())+2,9,19)","v":"2024-09-19"},"2025-08-07","2025-10-10",500,500,{"$f":"DAYS360(Projektinformation[[#This Row],[BERÄKNAD START]],Projektinformation[[#This Row],[BERÄKNAT SLUT]],FALSE)","v":67},{"$f":"DAYS360(Projektinformation[[#This Row],[FAKTISK START]],Projektinformation[[#This Row],[FAKTISKT SLUT]],FALSE)","v":63},{"$f":"INDEX(Parametrar[],MATCH(Projektinformation[[#This Row],[PROJEKTTYP]],Parametrar[PROJEKTTYP],0),MATCH(Projektinformation[[#Headers],[KUNDANSVARIG]],Parametrar[#Headers],0))*INDEX(PROJEKTPARAMETRAR!$B$12:$H$12,1,MATCH(Projektinformation[[#Headers],[KUNDANSVARIG]],Parametrar[#Headers],0))*Projektinformation[[#This Row],[BERÄKNAT ARBETE]]","v":{"v":18000,"d":"18,000 kr"}},{"$f":"INDEX(Parametrar[],MATCH(Projektinformation[[#This Row],[PROJEKTTYP]],Parametrar[PROJEKTTYP],0),MATCH(Projektinformation[[#Headers],[PROJEKTLEDARE]],Parametrar[#Headers],0))*INDEX(PROJEKTPARAMETRAR!$B$12:$H$12,1,MATCH(Projektinformation[[#Headers],[PROJEKTLEDARE]],Parametrar[#Headers],0))*Projektinformation[[#This Row],[BERÄKNAT ARBETE]]","v":{"v":12000,"d":"12,000 kr"}},{"$f":"INDEX(Parametrar[],MATCH(Projektinformation[[#This Row],[PROJEKTTYP]],Parametrar[PROJEKTTYP],0),MATCH(Projektinformation[[#Headers],[STRATEGIANSVARIG]],Parametrar[#Headers],0))*INDEX(PROJEKTPARAMETRAR!$B$12:$H$12,1,MATCH(Projektinformation[[#Headers],[STRATEGIANSVARIG]],Parametrar[#Headers],0))*Projektinformation[[#This Row],[BERÄKNAT ARBETE]]","v":{"v":0,"d":"0 kr"}},{"$f":"INDEX(Parametrar[],MATCH(Projektinformation[[#This Row],[PROJEKTTYP]],Parametrar[PROJEKTTYP],0),MATCH(Projektinformation[[#Headers],[DESIGNEXPERT]],Parametrar[#Headers],0))*INDEX(PROJEKTPARAMETRAR!$B$12:$H$12,1,MATCH(Projektinformation[[#Headers],[DESIGNEXPERT]],Parametrar[#Headers],0))*Projektinformation[[#This Row],[BERÄKNAT ARBETE]]","v":{"v":25000,"d":"25,000 kr"}},{"$f":"INDEX(Parametrar[],MATCH(Projektinformation[[#This Row],[PROJEKTTYP]],Parametrar[PROJEKTTYP],0),MATCH(Projektinformation[[#Headers],[EVENEMANGSPERSONAL]],Parametrar[#Headers],0))*INDEX(PROJEKTPARAMETRAR!$B$12:$H$12,1,MATCH(Projektinformation[[#Headers],[EVENEMANGSPERSONAL]],Parametrar[#Headers],0))*Projektinformation[[#This Row],[BERÄKNAT ARBETE]]","v":{"v":0,"d":"0 kr"}},{"$f":"INDEX(Parametrar[],MATCH(Projektinformation[[#This Row],[PROJEKTTYP]],Parametrar[PROJEKTTYP],0),MATCH(Projektinformation[[#Headers],[ADMINISTRATIONSPERSONAL]],Parametrar[#Headers],0))*INDEX(PROJEKTPARAMETRAR!$B$12:$H$12,1,MATCH(Projektinformation[[#Headers],[ADMINISTRATIONSPERSONAL]],Parametrar[#Headers],0))*Projektinformation[[#This Row],[BERÄKNAT ARBETE]]","v":{"v":3000,"d":"3,000 kr"}},{"$f":"INDEX(Parametrar[],MATCH(Projektinformation[[#This Row],[PROJEKTTYP]],Parametrar[PROJEKTTYP],0),MATCH(Projektinformation[[#Headers],[KUNDANSVARIG]],Parametrar[#Headers],0))*INDEX(PROJEKTPARAMETRAR!$B$12:$H$12,1,MATCH(Projektinformation[[#Headers],[KUNDANSVARIG]],Parametrar[#Headers],0))*Projektinformation[[#This Row],[FAKTISKT ARBETE]]","v":{"v":18000,"d":"18,000 kr"}},{"$f":"INDEX(Parametrar[],MATCH(Projektinformation[[#This Row],[PROJEKTTYP]],Parametrar[PROJEKTTYP],0),MATCH(Projektinformation[[#Headers],[PROJEKTLEDARE]],Parametrar[#Headers],0))*INDEX(PROJEKTPARAMETRAR!$B$12:$H$12,1,MATCH(Projektinformation[[#Headers],[PROJEKTLEDARE]],Parametrar[#Headers],0))*Projektinformation[[#This Row],[FAKTISKT ARBETE]]","v":{"v":12000,"d":"12,000 kr"}},{"$f":"INDEX(Parametrar[],MATCH(Projektinformation[[#This Row],[PROJEKTTYP]],Parametrar[PROJEKTTYP],0),MATCH(Projektinformation[[#Headers],[STRATEGIANSVARIG]],Parametrar[#Headers],0))*INDEX(PROJEKTPARAMETRAR!$B$12:$H$12,1,MATCH(Projektinformation[[#Headers],[STRATEGIANSVARIG]],Parametrar[#Headers],0))*Projektinformation[[#This Row],[FAKTISKT ARBETE]]","v":{"v":0,"d":"0 kr"}},{"$f":"INDEX(Parametrar[],MATCH(Projektinformation[[#This Row],[PROJEKTTYP]],Parametrar[PROJEKTTYP],0),MATCH(Projektinformation[[#Headers],[DESIGNEXPERT]],Parametrar[#Headers],0))*INDEX(PROJEKTPARAMETRAR!$B$12:$H$12,1,MATCH(Projektinformation[[#Headers],[DESIGNEXPERT]],Parametrar[#Headers],0))*Projektinformation[[#This Row],[FAKTISKT ARBETE]]","v":{"v":25000,"d":"25,000 kr"}},{"$f":"INDEX(Parametrar[],MATCH(Projektinformation[[#This Row],[PROJEKTTYP]],Parametrar[PROJEKTTYP],0),MATCH(Projektinformation[[#Headers],[EVENEMANGSPERSONAL]],Parametrar[#Headers],0))*INDEX(PROJEKTPARAMETRAR!$B$12:$H$12,1,MATCH(Projektinformation[[#Headers],[EVENEMANGSPERSONAL]],Parametrar[#Headers],0))*Projektinformation[[#This Row],[FAKTISKT ARBETE]]","v":{"v":0,"d":"0 kr"}},{"$f":"INDEX(Parametrar[],MATCH(Projektinformation[[#This Row],[PROJEKTTYP]],Parametrar[PROJEKTTYP],0),MATCH(Projektinformation[[#Headers],[ADMINISTRATIONSPERSONAL]],Parametrar[#Headers],0))*INDEX(PROJEKTPARAMETRAR!$B$12:$H$12,1,MATCH(Projektinformation[[#Headers],[ADMINISTRATIONSPERSONAL]],Parametrar[#Headers],0))*Projektinformation[[#This Row],[FAKTISKT ARBETE]]","v":{"v":3000,"d":"3,000 kr"}}]
[null,"Projekt 4","Evenemangslogistik",{"$f":"DATE(YEAR(TODAY())+3,7,30)","v":"2025-07-30"},{"$f":"DATE(YEAR(TODAY())+3,9,28)","v":"2025-09-28"},{"$f":"DATE(YEAR(TODAY())+3,9,14)","v":"2025-09-14"},{"$f":"DATE(YEAR(TODAY())+3,11,13)","v":"2025-11-13"},150,145,{"$f":"DAYS360(Projektinformation[[#This Row],[BERÄKNAD START]],Projektinformation[[#This Row],[BERÄKNAT SLUT]],FALSE)","v":58},{"$f":"DAYS360(Projektinformation[[#This Row],[FAKTISK START]],Projektinformation[[#This Row],[FAKTISKT SLUT]],FALSE)","v":59},{"$f":"INDEX(Parametrar[],MATCH(Projektinformation[[#This Row],[PROJEKTTYP]],Parametrar[PROJEKTTYP],0),MATCH(Projektinformation[[#Headers],[KUNDANSVARIG]],Parametrar[#Headers],0))*INDEX(PROJEKTPARAMETRAR!$B$12:$H$12,1,MATCH(Projektinformation[[#Headers],[KUNDANSVARIG]],Parametrar[#Headers],0))*Projektinformation[[#This Row],[BERÄKNAT ARBETE]]","v":{"v":5400,"d":"5,400 kr"}},{"$f":"INDEX(Parametrar[],MATCH(Projektinformation[[#This Row],[PROJEKTTYP]],Parametrar[PROJEKTTYP],0),MATCH(Projektinformation[[#Headers],[PROJEKTLEDARE]],Parametrar[#Headers],0))*INDEX(PROJEKTPARAMETRAR!$B$12:$H$12,1,MATCH(Projektinformation[[#Headers],[PROJEKTLEDARE]],Parametrar[#Headers],0))*Projektinformation[[#This Row],[BERÄKNAT ARBETE]]","v":{"v":10800,"d":"10,800 kr"}},{"$f":"INDEX(Parametrar[],MATCH(Projektinformation[[#This Row],[PROJEKTTYP]],Parametrar[PROJEKTTYP],0),MATCH(Projektinformation[[#Headers],[STRATEGIANSVARIG]],Parametrar[#Headers],0))*INDEX(PROJEKTPARAMETRAR!$B$12:$H$12,1,MATCH(Projektinformation[[#Headers],[STRATEGIANSVARIG]],Parametrar[#Headers],0))*Projektinformation[[#This Row],[BERÄKNAT ARBETE]]","v":{"v":0,"d":"0 kr"}},{"$f":"INDEX(Parametrar[],MATCH(Projektinformation[[#This Row],[PROJEKTTYP]],Parametrar[PROJEKTTYP],0),MATCH(Projektinformation[[#Headers],[DESIGNEXPERT]],Parametrar[#Headers],0))*INDEX(PROJEKTPARAMETRAR!$B$12:$H$12,1,MATCH(Projektinformation[[#Headers],[DESIGNEXPERT]],Parametrar[#Headers],0))*Projektinformation[[#This Row],[BERÄKNAT ARBETE]]","v":{"v":0,"d":"0 kr"}},{"$f":"INDEX(Parametrar[],MATCH(Projektinformation[[#This Row],[PROJEKTTYP]],Parametrar[PROJEKTTYP],0),MATCH(Projektinformation[[#Headers],[EVENEMANGSPERSONAL]],Parametrar[#Headers],0))*INDEX(PROJEKTPARAMETRAR!$B$12:$H$12,1,MATCH(Projektinformation[[#Headers],[EVENEMANGSPERSONAL]],Parametrar[#Headers],0))*Projektinformation[[#This Row],[BERÄKNAT ARBETE]]","v":{"v":1200,"d":"1,200 kr"}},{"$f":"INDEX(Parametrar[],MATCH(Projektinformation[[#This Row],[PROJEKTTYP]],Parametrar[PROJEKTTYP],0),MATCH(Projektinformation[[#Headers],[ADMINISTRATIONSPERSONAL]],Parametrar[#Headers],0))*INDEX(PROJEKTPARAMETRAR!$B$12:$H$12,1,MATCH(Projektinformation[[#Headers],[ADMINISTRATIONSPERSONAL]],Parametrar[#Headers],0))*Projektinformation[[#This Row],[BERÄKNAT ARBETE]]","v":{"v":900,"d":"900 kr"}},{"$f":"INDEX(Parametrar[],MATCH(Projektinformation[[#This Row],[PROJEKTTYP]],Parametrar[PROJEKTTYP],0),MATCH(Projektinformation[[#Headers],[KUNDANSVARIG]],Parametrar[#Headers],0))*INDEX(PROJEKTPARAMETRAR!$B$12:$H$12,1,MATCH(Projektinformation[[#Headers],[KUNDANSVARIG]],Parametrar[#Headers],0))*Projektinformation[[#This Row],[FAKTISKT ARBETE]]","v":{"v":5220,"d":"5,220 kr"}},{"$f":"INDEX(Parametrar[],MATCH(Projektinformation[[#This Row],[PROJEKTTYP]],Parametrar[PROJEKTTYP],0),MATCH(Projektinformation[[#Headers],[PROJEKTLEDARE]],Parametrar[#Headers],0))*INDEX(PROJEKTPARAMETRAR!$B$12:$H$12,1,MATCH(Projektinformation[[#Headers],[PROJEKTLEDARE]],Parametrar[#Headers],0))*Projektinformation[[#This Row],[FAKTISKT ARBETE]]","v":{"v":10440,"d":"10,440 kr"}},{"$f":"INDEX(Parametrar[],MATCH(Projektinformation[[#This Row],[PROJEKTTYP]],Parametrar[PROJEKTTYP],0),MATCH(Projektinformation[[#Headers],[STRATEGIANSVARIG]],Parametrar[#Headers],0))*INDEX(PROJEKTPARAMETRAR!$B$12:$H$12,1,MATCH(Projektinformation[[#Headers],[STRATEGIANSVARIG]],Parametrar[#Headers],0))*Projektinformation[[#This Row],[FAKTISKT ARBETE]]","v":{"v":0,"d":"0 kr"}},{"$f":"INDEX(Parametrar[],MATCH(Projektinformation[[#This Row],[PROJEKTTYP]],Parametrar[PROJEKTTYP],0),MATCH(Projektinformation[[#Headers],[DESIGNEXPERT]],Parametrar[#Headers],0))*INDEX(PROJEKTPARAMETRAR!$B$12:$H$12,1,MATCH(Projektinformation[[#Headers],[DESIGNEXPERT]],Parametrar[#Headers],0))*Projektinformation[[#This Row],[FAKTISKT ARBETE]]","v":{"v":0,"d":"0 kr"}},{"$f":"INDEX(Parametrar[],MATCH(Projektinformation[[#This Row],[PROJEKTTYP]],Parametrar[PROJEKTTYP],0),MATCH(Projektinformation[[#Headers],[EVENEMANGSPERSONAL]],Parametrar[#Headers],0))*INDEX(PROJEKTPARAMETRAR!$B$12:$H$12,1,MATCH(Projektinformation[[#Headers],[EVENEMANGSPERSONAL]],Parametrar[#Headers],0))*Projektinformation[[#This Row],[FAKTISKT ARBETE]]","v":{"v":1160,"d":"1,160 kr"}},{"$f":"INDEX(Parametrar[],MATCH(Projektinformation[[#This Row],[PROJEKTTYP]],Parametrar[PROJEKTTYP],0),MATCH(Projektinformation[[#Headers],[ADMINISTRATIONSPERSONAL]],Parametrar[#Headers],0))*INDEX(PROJEKTPARAMETRAR!$B$12:$H$12,1,MATCH(Projektinformation[[#Headers],[ADMINISTRATIONSPERSONAL]],Parametrar[#Headers],0))*Projektinformation[[#This Row],[FAKTISKT ARBETE]]","v":{"v":870,"d":"870 kr"}}]
[null,"Projekt 5","Evenemangsbemanning",{"$f":"DATE(YEAR(TODAY())+4,8,11)","v":"2026-08-11"},{"$f":"DATE(YEAR(TODAY())+4,8,21)","v":"2026-08-21"},{"$f":"DATE(YEAR(TODAY())+4,9,14)","v":"2026-09-14"},{"$f":"DATE(YEAR(TODAY())+4,9,25)","v":"2026-09-25"},250,255,{"$f":"DAYS360(Projektinformation[[#This Row],[BERÄKNAD START]],Projektinformation[[#This Row],[BERÄKNAT SLUT]],FALSE)","v":10},{"$f":"DAYS360(Projektinformation[[#This Row],[FAKTISK START]],Projektinformation[[#This Row],[FAKTISKT SLUT]],FALSE)","v":11},{"$f":"INDEX(Parametrar[],MATCH(Projektinformation[[#This Row],[PROJEKTTYP]],Parametrar[PROJEKTTYP],0),MATCH(Projektinformation[[#Headers],[KUNDANSVARIG]],Parametrar[#Headers],0))*INDEX(PROJEKTPARAMETRAR!$B$12:$H$12,1,MATCH(Projektinformation[[#Headers],[KUNDANSVARIG]],Parametrar[#Headers],0))*Projektinformation[[#This Row],[BERÄKNAT ARBETE]]","v":{"v":9000,"d":"9,000 kr"}},{"$f":"INDEX(Parametrar[],MATCH(Projektinformation[[#This Row],[PROJEKTTYP]],Parametrar[PROJEKTTYP],0),MATCH(Projektinformation[[#Headers],[PROJEKTLEDARE]],Parametrar[#Headers],0))*INDEX(PROJEKTPARAMETRAR!$B$12:$H$12,1,MATCH(Projektinformation[[#Headers],[PROJEKTLEDARE]],Parametrar[#Headers],0))*Projektinformation[[#This Row],[BERÄKNAT ARBETE]]","v":{"v":3000,"d":"3,000 kr"}},{"$f":"INDEX(Parametrar[],MATCH(Projektinformation[[#This Row],[PROJEKTTYP]],Parametrar[PROJEKTTYP],0),MATCH(Projektinformation[[#Headers],[STRATEGIANSVARIG]],Parametrar[#Headers],0))*INDEX(PROJEKTPARAMETRAR!$B$12:$H$12,1,MATCH(Projektinformation[[#Headers],[STRATEGIANSVARIG]],Parametrar[#Headers],0))*Projektinformation[[#This Row],[BERÄKNAT ARBETE]]","v":{"v":0,"d":"0 kr"}},{"$f":"INDEX(Parametrar[],MATCH(Projektinformation[[#This Row],[PROJEKTTYP]],Parametrar[PROJEKTTYP],0),MATCH(Projektinformation[[#Headers],[DESIGNEXPERT]],Parametrar[#Headers],0))*INDEX(PROJEKTPARAMETRAR!$B$12:$H$12,1,MATCH(Projektinformation[[#Headers],[DESIGNEXPERT]],Parametrar[#Headers],0))*Projektinformation[[#This Row],[BERÄKNAT ARBETE]]","v":{"v":0,"d":"0 kr"}},{"$f":"INDEX(Parametrar[],MATCH(Projektinformation[[#This Row],[PROJEKTTYP]],Parametrar[PROJEKTTYP],0),MATCH(Projektinformation[[#Headers],[EVENEMANGSPERSONAL]],Parametrar[#Headers],0))*INDEX(PROJEKTPARAMETRAR!$B$12:$H$12,1,MATCH(Projektinformation[[#Headers],[EVENEMANGSPERSONAL]],Parametrar[#Headers],0))*Projektinformation[[#This Row],[BERÄKNAT ARBETE]]","v":{"v":12000,"d":"12,000 kr"}},{"$f":"INDEX(Parametrar[],MATCH(Projektinformation[[#This Row],[PROJEKTTYP]],Parametrar[PROJEKTTYP],0),MATCH(Projektinformation[[#Headers],[ADMINISTRATIONSPERSONAL]],Parametrar[#Headers],0))*INDEX(PROJEKTPARAMETRAR!$B$12:$H$12,1,MATCH(Projektinformation[[#Headers],[ADMINISTRATIONSPERSONAL]],Parametrar[#Headers],0))*Projektinformation[[#This Row],[BERÄKNAT ARBETE]]","v":{"v":1500,"d":"1,500 kr"}},{"$f":"INDEX(Parametrar[],MATCH(Projektinformation[[#This Row],[PROJEKTTYP]],Parametrar[PROJEKTTYP],0),MATCH(Projektinformation[[#Headers],[KUNDANSVARIG]],Parametrar[#Headers],0))*INDEX(PROJEKTPARAMETRAR!$B$12:$H$12,1,MATCH(Projektinformation[[#Headers],[KUNDANSVARIG]],Parametrar[#Headers],0))*Projektinformation[[#This Row],[FAKTISKT ARBETE]]","v":{"v":9180,"d":"9,180 kr"}},{"$f":"INDEX(Parametrar[],MATCH(Projektinformation[[#This Row],[PROJEKTTYP]],Parametrar[PROJEKTTYP],0),MATCH(Projektinformation[[#Headers],[PROJEKTLEDARE]],Parametrar[#Headers],0))*INDEX(PROJEKTPARAMETRAR!$B$12:$H$12,1,MATCH(Projektinformation[[#Headers],[PROJEKTLEDARE]],Parametrar[#Headers],0))*Projektinformation[[#This Row],[FAKTISKT ARBETE]]","v":{"v":3060,"d":"3,060 kr"}},{"$f":"INDEX(Parametrar[],MATCH(Projektinformation[[#This Row],[PROJEKTTYP]],Parametrar[PROJEKTTYP],0),MATCH(Projektinformation[[#Headers],[STRATEGIANSVARIG]],Parametrar[#Headers],0))*INDEX(PROJEKTPARAMETRAR!$B$12:$H$12,1,MATCH(Projektinformation[[#Headers],[STRATEGIANSVARIG]],Parametrar[#Headers],0))*Projektinformation[[#This Row],[FAKTISKT ARBETE]]","v":{"v":0,"d":"0 kr"}},{"$f":"INDEX(Parametrar[],MATCH(Projektinformation[[#This Row],[PROJEKTTYP]],Parametrar[PROJEKTTYP],0),MATCH(Projektinformation[[#Headers],[DESIGNEXPERT]],Parametrar[#Headers],0))*INDEX(PROJEKTPARAMETRAR!$B$12:$H$12,1,MATCH(Projektinformation[[#Headers],[DESIGNEXPERT]],Parametrar[#Headers],0))*Projektinformation[[#This Row],[FAKTISKT ARBETE]]","v":{"v":0,"d":"0 kr"}},{"$f":"INDEX(Parametrar[],MATCH(Projektinformation[[#This Row],[PROJEKTTYP]],Parametrar[PROJEKTTYP],0),MATCH(Projektinformation[[#Headers],[EVENEMANGSPERSONAL]],Parametrar[#Headers],0))*INDEX(PROJEKTPARAMETRAR!$B$12:$H$12,1,MATCH(Projektinformation[[#Headers],[EVENEMANGSPERSONAL]],Parametrar[#Headers],0))*Projektinformation[[#This Row],[FAKTISKT ARBETE]]","v":{"v":12240,"d":"12,240 kr"}},{"$f":"INDEX(Parametrar[],MATCH(Projektinformation[[#This Row],[PROJEKTTYP]],Parametrar[PROJEKTTYP],0),MATCH(Projektinformation[[#Headers],[ADMINISTRATIONSPERSONAL]],Parametrar[#Headers],0))*INDEX(PROJEKTPARAMETRAR!$B$12:$H$12,1,MATCH(Projektinformation[[#Headers],[ADMINISTRATIONSPERSONAL]],Parametrar[#Headers],0))*Projektinformation[[#This Row],[FAKTISKT ARBETE]]","v":{"v":1530,"d":"1,530 kr"}}]
[null,"SUMMA",{"$nulls":5},{"$f":"SUBTOTAL(109,Projektinformation[BERÄKNAT ARBETE])","v":1500},{"$f":"SUBTOTAL(109,Projektinformation[FAKTISKT ARBETE])","v":1510},{"$f":"SUBTOTAL(109,Projektinformation[BERÄKNAD VARAKTIGHET])","v":225},{"$f":"SUBTOTAL(109,Projektinformation[FAKTISK VARAKTIGHET])","v":597}]

{"sheet":"PROJEKTSUMMOR","index":3,"n_rows":10,"n_cols":14,"rows_kept":10}
[null,{"$f":"PROJEKTPARAMETRAR!B1","v":"Företagsnamn"}]
[null,"Projektuppföljning för evenemangshantering"]
[null,{"$f":"PROJEKTPARAMETRAR!B3","v":"Företagsnamn Konfidentiellt"}]
["Pivottabellen som börjar i cellen till höger uppdateras automatiskt.\nINFORMATION\nOm du vill uppdatera pivottabellen till höger markerar du den (markera valfri cell i pivottabellen) och väljer sedan Uppdatera på menyfliken VERKTYG FÖR PIVOTTABELL | ANALYSERA. Du kan också trycka på SKIFT + F10-tangenten i valfri cell i pivottabellen och sedan välja Uppdatera.","PROJEKTNAMN","BERÄKNAT KUNDANSVARIG","BERÄKNAT PROJEKTLEDARE","BERÄKNAT STRATEGIANSVARIG","BERÄKNAT DESIGNEXPERT","BERÄKNAT EVENEMANGSPERSONAL","BERÄKNAT ADMINISTRATIONSPERSONAL","FAKTISKT KUNDANSVARIG","FAKTISKT PROJEKTLEDARE","FAKTISKT STRATEGIANSVARIG","FAKTISKT DESIGNEXPERT","FAKTISKT EVENEMANGSPERSONAL","FAKTISKT ADMINISTRATIONSPERSONAL"]
[null,"Projekt 1",{"v":7200,"d":"7,200.00 kr"},{"v":2400,"d":"2,400.00 kr"},{"v":18000,"d":"18,000.00 kr"},{"v":0,"d":"0.00 kr"},{"v":0,"d":"0.00 kr"},{"v":1200,"d":"1,200.00 kr"},{"v":7920,"d":"7,920.00 kr"},{"v":2640,"d":"2,640.00 kr"},{"v":19800,"d":"19,800.00 kr"},{"v":0,"d":"0.00 kr"},{"v":0,"d":"0.00 kr"},{"v":1320,"d":"1,320.00 kr"}]
[null,"Projekt 2",{"v":14400,"d":"14,400.00 kr"},{"v":24000,"d":"24,000.00 kr"},{"v":6000,"d":"6,000.00 kr"},{"v":4000,"d":"4,000.00 kr"},{"v":0,"d":"0.00 kr"},{"v":2400,"d":"2,400.00 kr"},{"v":14040,"d":"14,040.00 kr"},{"v":23400,"d":"23,400.00 kr"},{"v":5850,"d":"5,850.00 kr"},{"v":3900,"d":"3,900.00 kr"},{"v":0,"d":"0.00 kr"},{"v":2340,"d":"2,340.00 kr"}]
[null,"Projekt 3",{"v":18000,"d":"18,000.00 kr"},{"v":12000,"d":"12,000.00 kr"},{"v":0,"d":"0.00 kr"},{"v":25000,"d":"25,000.00 kr"},{"v":0,"d":"0.00 kr"},{"v":3000,"d":"3,000.00 kr"},{"v":18000,"d":"18,000.00 kr"},{"v":12000,"d":"12,000.00 kr"},{"v":0,"d":"0.00 kr"},{"v":25000,"d":"25,000.00 kr"},{"v":0,"d":"0.00 kr"},{"v":3000,"d":"3,000.00 kr"}]
[null,"Projekt 4",{"v":5400,"d":"5,400.00 kr"},{"v":10800,"d":"10,800.00 kr"},{"v":0,"d":"0.00 kr"},{"v":0,"d":"0.00 kr"},{"v":1200,"d":"1,200.00 kr"},{"v":900,"d":"900.00 kr"},{"v":5220,"d":"5,220.00 kr"},{"v":10440,"d":"10,440.00 kr"},{"v":0,"d":"0.00 kr"},{"v":0,"d":"0.00 kr"},{"v":1160,"d":"1,160.00 kr"},{"v":870,"d":"870.00 kr"}]
[null,"Projekt 5",{"v":9000,"d":"9,000.00 kr"},{"v":3000,"d":"3,000.00 kr"},{"v":0,"d":"0.00 kr"},{"v":0,"d":"0.00 kr"},{"v":12000,"d":"12,000.00 kr"},{"v":1500,"d":"1,500.00 kr"},{"v":9180,"d":"9,180.00 kr"},{"v":3060,"d":"3,060.00 kr"},{"v":0,"d":"0.00 kr"},{"v":0,"d":"0.00 kr"},{"v":12240,"d":"12,240.00 kr"},{"v":1530,"d":"1,530.00 kr"}]
[null,"Totalsumma",{"v":54000,"d":"54,000.00 kr"},{"v":52200,"d":"52,200.00 kr"},{"v":24000,"d":"24,000.00 kr"},{"v":29000,"d":"29,000.00 kr"},{"v":13200,"d":"13,200.00 kr"},{"v":9000,"d":"9,000.00 kr"},{"v":54360,"d":"54,360.00 kr"},{"v":51540,"d":"51,540.00 kr"},{"v":25650,"d":"25,650.00 kr"},{"v":28900,"d":"28,900.00 kr"},{"v":13400,"d":"13,400.00 kr"},{"v":9060,"d":"9,060.00 kr"}]